[Event "82nd Italian Championship 2023"]
[Site "Brescia"]
[Date "2023.12.09"]
[Round "11.2"]
[White "Lumachi, Gabriele"]
[Black "Lodici, Lorenzo"]
[Result "0-1"]
[ECO "A84"]
[WhiteElo "2395"]
[BlackElo "2550"]
[Annotator "RC"]
[PlyCount "134"]
[EventDate "2023.11.28"]
[EventType "tourn"]
[EventCountry "ITA"]
[SourceTitle "playchess.com"]
[Source "ChessBase"]
[SourceQuality "1"]
[TimeControl "40/6000+30:20/3000+30:900+30"]

1. d4 {[%emt 0:00:04]} e6 {[%emt 0:00:29]} 2. c4 {[%emt 0:00:07]} f5 {[%emt 0:00:05]} 3. g4 {[%emt 0:05:40]} Bb4+ {[%emt 0:05:55]} 4. Bd2 {[%emt 0:04:24]} Bxd2+ {[%emt 0:11:23]} 5. Qxd2 {[%emt 0:00:06]} fxg4 {[%emt 0:00:03]} 6. Nc3 {[%emt 0:08:29]} Nh6 {[%emt 0:06:55]} 7. O-O-O {[%emt 0:07:28]} O-O {[%emt 0:03:07]} 8. f4 {[%emt 0:00:10]} c5 {[%emt 0:14:37]} 9. d5 {[%emt 0:19:03]} e5 {[%emt 0:02:32]} 10. fxe5 {[%emt 0:02:29]} Qe7 {[%emt 0:00:14]} 11. e6 {[%emt 0:08:35]} dxe6 {[%emt 0:00:23]} 12. d6 {[%emt 0:03:38]} Qh4 {[%emt 0:00:05]} 13. Bg2 {[%emt 0:11:39]} Qf2 {[%emt 0:23:56]} 14. Be4 {[%emt 0:01:59]} Nf5 {[%emt 0:00:14]} 15. Nb5 {[%emt 0:05:47]} Ne3 {[%emt 0:06:33]} 16. Nc7 {[%emt 0:00:59]} Nxd1 {[%emt 0:05:21]} 17. Kxd1 {[%emt 0:00:20]} Bd7 {[%emt 0:03:41]} 18. Nxa8 {[%emt 0:04:34]} Bc6 {[%emt 0:00:56]} 19. Bxc6 {[%emt 0:01:30]} Nxc6 {[%emt 0:00:07]} 20. Nh3 {[%emt 0:04:06]} gxh3 {[%emt 0:02:28]} 21. Nc7 {[%emt 0:00:13]} Nd4 {[%emt 0:01:53]} 22. Nb5 {[%emt 0:04:27]} Rd8 {[%emt 0:06:21]} 23. Kc1 {[%emt 0:02:15]} Nxe2+ {[%emt 0:02:05]} 24. Kb1 {[%emt 0:00:37]} a6 {[%emt 0:00:50]} 25. Qa5 {[%emt 0:04:20]} Rd7 {[%emt 0:00:28]} 26. Qc7 {[%emt 0:01:35]} Qf5+ {[%emt 0:04:55]} 27. Ka1 {[%emt 0:00:07]} e5 {[%emt 0:04:35]} 28. Qc8+ {[%emt 0:00:25]} Kf7 {[%emt 0:00:02]} 29. Nc7 {[%emt 0:00:13]} Kg6 {[%emt 0:00:41]} 30. Nd5 {[%emt 0:05:33]} Kh6 {[%emt 0:01:37]} 31. Ne3 {[%emt 0:03:25]} Qe6 {[%emt 0:01:19]} 32. Qxc5 {[%emt 0:01:39]} g6 {[%emt 0:01:00]} 33. Nd5 {[%emt 0:00:32]} Qxd6 {[%emt 0:01:12]} 34. Qe3+ {[%emt 0:00:22]} Nf4 {[%emt 0:00:02]} 35. Rf1 {[%emt 0:00:36]} Kg7 {[%emt 0:00:57]} 36. a3 {[%emt 0:00:24]} Nxd5 {[%emt 0:00:14]} 37. cxd5 {[%emt 0:00:03]} Qxd5 {[%emt 0:00:04]} 38. Qxh3 {[%emt 0:00:25]} Qd6 {[%emt 0:01:40]} 39. Qh4 {[%emt 0:00:40]} Qe7 {[%emt 0:00:19]} 40. Qg3 {[%emt 0:00:21]} Rd6 {[%emt 0:00:37]} 41. h4 {[%emt 0:02:22]} h5 {[%emt 0:01:09]} 42. Re1 {[%emt 0:02:03]} e4 {[%emt 0:00:21]} 43. Qc3+ {[%emt 0:07:17]} Kh7 {[%emt 0:00:33]} 44. Qb3 {[%emt 0:00:11]} Re6 {[%emt 0:00:28]} 45. Re3 {[%emt 0:00:13]} Qd7 {[%emt 0:01:47]} 46. Qc4 {[%emt 0:02:07]} Qc6 {[%emt 0:01:49]} 47. Qf1 {[%emt 0:00:18]} Kg7 {[%emt 0:02:02]} 48. Rc3 {[%emt 0:02:43]} Qd6 {[%emt 0:01:27]} 49. Qc1 {[%emt 0:01:19]} Re7 {[%emt 0:01:43]} 50. Qe3 {[%emt 0:02:25]} b5 {[%emt 0:03:48]} 51. Rc5 {[%emt 0:11:38]} Qf6 {[%emt 0:00:47]} 52. Rc8 {[%emt 0:03:24]} a5 {[%emt 0:02:31]} 53. Ra8 {[%emt 0:10:22]} a4 {[%emt 0:06:41]} 54. Rc8 {[%emt 0:02:20]} Rd7 {[%emt 0:01:33]} 55. Qc1 {[%emt 0:02:25]} Qd4 {[%emt 0:07:46]} 56. Rc7 {[%emt 0:02:39]} e3 {[%emt 0:01:55]} 57. Rxd7+ {[%emt 0:01:00]} Qxd7 {[%emt 0:00:11]} 58. Qc3+ {[%emt 0:00:12]} Kf7 {[%emt 0:00:16]} 59. Qe5 {[%emt 0:02:18]} Qe7 {[%emt 0:00:59]} 60. Qh8 {[%emt 0:01:17]} e2 {[%emt 0:00:58]} 61. Qh7+ {[%emt 0:17:21]} Kf6 {[%emt 0:15:29]} 62. Qh8+ {[%emt 0:00:31]} Kf5 {[%emt 0:00:02]} 63. Qc8+ {[%emt 0:00:30]} Kf4 {[%emt 0:00:04]} 64. Qc1+ {[%emt 0:00:00]} Qe3 {[%emt 0:00:00]} 65. Qe1 {[%emt 0:00:00]} Kf3 {[%emt 0:00:00]} 66. Qh1+ {[%emt 0:00:00]} Kg3 {[%emt 0:00:00]} 67. Qe1+ {[%emt 0:00:00]} Kg2 {[%emt 0:00:00]} 0-1

[Event "82nd Italian Championship 2023"]
[Site "Brescia"]
[Date "2023.12.09"]
[Round "11.3"]
[White "Basso, Pier Luigi"]
[Black "Dvirnyy, Danyyil"]
[Result "1/2-1/2"]
[ECO "D14"]
[WhiteElo "2483"]
[BlackElo "2495"]
[Annotator "RC"]
[PlyCount "21"]
[EventDate "2023.11.28"]
[EventType "tourn"]
[EventCountry "ITA"]
[SourceTitle "playchess.com"]
[Source "ChessBase"]
[SourceQuality "1"]
[TimeControl "40/6000+30:20/3000+30:900+30"]

1. d4 {[%emt 0:00:06]} d5 {[%emt 0:01:07]} 2. c4 {[%emt 0:00:06]} c6 {[%emt 0:00:05]} 3. Nf3 {[%emt 0:00:04]} Nf6 {[%emt 0:00:06]} 4. cxd5 {[%emt 0:00:05]} cxd5 {[%emt 0:00:05]} 5. Nc3 {[%emt 0:00:05]} Nc6 {[%emt 0:00:06]} 6. Bf4 {[%emt 0:00:04]} Bf5 {[%emt 0:00:06]} 7. e3 {[%emt 0:00:05]} e6 {[%emt 0:00:06]} 8. Bd3 {[%emt 0:00:05]} Bxd3 {[%emt 0:00:05]} 9. Qxd3 {[%emt 0:00:05]} Bd6 {[%emt 0:00:06]} 10. Bxd6 {[%emt 0:00:06]} Qxd6 {[%emt 0:00:04]} 11. O-O {[%emt 1:45:09]} 1/2-1/2

[Event "82nd Italian Championship 2023"]
[Site "Brescia"]
[Date "2023.12.09"]
[Round "11.4"]
[White "Gilevych, Artem"]
[Black "David, Alberto"]
[Result "1-0"]
[ECO "E73"]
[WhiteElo "2416"]
[BlackElo "2532"]
[Annotator "RC"]
[PlyCount "71"]
[EventDate "2023.11.28"]
[EventType "tourn"]
[EventCountry "ITA"]
[SourceTitle "playchess.com"]
[Source "ChessBase"]
[SourceQuality "1"]
[TimeControl "40/6000+30:20/3000+30:900+30"]

1. d4 {[%emt 0:00:13]} Nf6 {[%emt 0:00:12]} 2. c4 {[%emt 0:00:07]} g6 {[%emt 0:00:08]} 3. Nc3 {[%emt 0:00:04]} Bg7 {[%emt 0:00:05]} 4. e4 {[%emt 0:00:04]} d6 {[%emt 0:00:05]} 5. Be2 {[%emt 0:00:26]} O-O {[%emt 0:00:09]} 6. Be3 {[%emt 0:00:25]} Nc6 {[%emt 0:00:38]} 7. d5 {[%emt 0:00:12]} Ne5 {[%emt 0:00:28]} 8. f4 {[%emt 0:01:48]} Neg4 {[%emt 0:00:08]} 9. Bd2 {[%emt 0:00:35]} Nh6 {[%emt 0:01:31]} 10. h3 {[%emt 0:00:08]} e6 {[%emt 0:00:32]} 11. dxe6 {[%emt 0:18:47]} fxe6 {[%emt 0:00:20]} 12. g4 {[%emt 0:21:26]} b5 {[%emt 0:12:02]} 13. cxb5 {[%emt 0:09:20]} Bb7 {[%emt 0:08:01]} 14. Qc2 {[%emt 0:00:21]} d5 {[%emt 0:02:22]} 15. O-O-O {[%emt 0:04:02]} dxe4 {[%emt 0:03:22]} 16. Bc4 {[%emt 0:13:46]} Nd5 {[%emt 0:02:52]} 17. Nge2 {[%emt 0:02:17]} a6 {[%emt 0:12:36]} 18. Qxe4 {[%emt 0:07:43]} axb5 {[%emt 0:30:59]} 19. Qxe6+ {[%emt 0:08:00]} Kh8 {[%emt 0:00:13]} 20. Bxd5 {[%emt 0:00:23]} Re8 {[%emt 0:00:04]} 21. Qxe8+ {[%emt 0:00:24]} Qxe8 {[%emt 0:00:04]} 22. Bxb7 {[%emt 0:00:04]} Rb8 {[%emt 0:13:56]} 23. Bf3 {[%emt 0:03:31]} b4 {[%emt 0:02:30]} 24. Nd5 {[%emt 0:02:49]} Qa4 {[%emt 0:13:47]} 25. Kb1 {[%emt 0:02:42]} Bxb2 {[%emt 0:01:43]} 26. Kxb2 {[%emt 0:07:17]} Qa3+ {[%emt 0:00:15]} 27. Ka1 {[%emt 0:01:00]} Ra8 {[%emt 0:03:50]} 28. Ndc3 {[%emt 0:03:12]} c6 {[%emt 0:01:05]} 29. Bc1 {[%emt 0:01:13]} Qa6 {[%emt 0:00:17]} 30. Bb2 {[%emt 0:00:43]} Kg8 {[%emt 0:00:19]} 31. Rd6 {[%emt 0:00:46]} bxc3 {[%emt 0:00:46]} 32. Nxc3 {[%emt 0:00:05]} Nf7 {[%emt 0:00:39]} 33. Rxc6 {[%emt 0:00:41]} Qa7 {[%emt 0:00:30]} 34. Bd5 {[%emt 0:00:19]} Rb8 {[%emt 0:00:17]} 35. Rf6 {[%emt 0:01:22]} Qf2 {[%emt 0:00:26]} 36. Bb3 {[%emt 0:01:00]} 1-0

[Event "82nd Italian Championship 2023"]
[Site "Brescia"]
[Date "2023.12.09"]
[Round "11.5"]
[White "Sonis, Francesco"]
[Black "Iermito, Sebastian"]
[Result "1-0"]
[ECO "C75"]
[WhiteElo "2564"]
[BlackElo "2524"]
[Annotator "RC"]
[PlyCount "102"]
[EventDate "2023.11.28"]
[EventType "tourn"]
[EventCountry "ITA"]
[SourceTitle "playchess.com"]
[Source "ChessBase"]
[SourceQuality "1"]
[TimeControl "40/6000+30:20/3000+30:900+30"]

1. e4 {[%emt 0:00:01]} e5 {[%emt 0:00:05]} 2. Nf3 {[%emt 0:00:04]} Nc6 {[%emt 0:00:04]} 3. Bb5 {[%emt 0:00:03]} a6 {[%emt 0:00:19]} 4. Ba4 {[%emt 0:00:02]} d6 {[%emt 0:00:07]} 5. O-O {[%emt 0:00:04]} Bd7 {[%emt 0:00:20]} 6. c3 {[%emt 0:00:11]} Nge7 {[%emt 0:00:41]} 7. d4 {[%emt 0:11:47]} Ng6 {[%emt 0:00:14]} 8. Re1 {[%emt 0:01:11]} Be7 {[%emt 0:00:12]} 9. h3 {[%emt 0:07:25]} O-O {[%emt 0:00:37]} 10. d5 {[%emt 0:01:33]} Nb8 {[%emt 0:00:26]} 11. Bc2 {[%emt 0:00:02]} f5 {[%emt 0:13:00]} 12. exf5 {[%emt 0:00:34]} Bxf5 {[%emt 0:00:04]} 13. Bxf5 {[%emt 0:05:43]} Rxf5 {[%emt 0:00:05]} 14. Nbd2 {[%emt 0:00:04]} Nd7 {[%emt 0:05:32]} 15. Ne4 {[%emt 0:00:29]} Qf8 {[%emt 0:14:17]} 16. Be3 {[%emt 0:10:57]} Nf4 {[%emt 0:07:33]} 17. Ng3 {[%emt 0:15:14]} Rf7 {[%emt 0:07:55]} 18. Bxf4 {[%emt 0:00:07]} Rxf4 {[%emt 0:00:17]} 19. Re4 {[%emt 0:00:31]} Nc5 {[%emt 0:06:15]} 20. Rxf4 {[%emt 0:00:06]} Qxf4 {[%emt 0:13:11]} 21. Qe2 {[%emt 0:00:41]} e4 {[%emt 0:23:28]} 22. Nd2 {[%emt 0:08:40]} e3 {[%emt 0:01:12]} 23. Qxe3 {[%emt 0:00:05]} Qxe3 {[%emt 0:00:04]} 24. fxe3 {[%emt 0:00:07]} Bg5 {[%emt 0:00:13]} 25. Ndf1 {[%emt 0:01:47]} Re8 {[%emt 0:00:44]} 26. Re1 {[%emt 0:00:06]} Re5 {[%emt 0:10:36]} 27. e4 {[%emt 0:05:17]} Nd3 {[%emt 0:00:09]} 28. Re2 {[%emt 0:00:23]} Nc1 {[%emt 0:00:32]} 29. Rc2 {[%emt 0:00:29]} Nxa2 {[%emt 0:00:59]} 30. h4 {[%emt 0:01:32]} Bf4 {[%emt 0:04:14]} 31. Ne2 {[%emt 0:00:29]} Rxe4 {[%emt 0:00:08]} 32. Nxf4 {[%emt 0:00:21]} Rxf4 {[%emt 0:00:01]} 33. b3 {[%emt 0:00:05]} Nxc3 {[%emt 0:00:32]} 34. Rxc3 {[%emt 0:00:04]} Rxh4 {[%emt 0:00:12]} 35. Rxc7 {[%emt 0:00:32]} Rb4 {[%emt 0:00:26]} 36. Ne3 {[%emt 0:03:06]} Rxb3 {[%emt 0:00:32]} 37. Nf5 {[%emt 0:00:05]} g6 {[%emt 0:01:50]} 38. Nxd6 {[%emt 0:00:05]} Rd3 {[%emt 0:00:17]} 39. Ne4 {[%emt 0:00:05]} Kf8 {[%emt 0:01:27]} 40. d6 {[%emt 0:01:44]} Rd4 {[%emt 0:00:13]} 41. Rxh7 {[%emt 0:51:42]} Rxe4 {[%emt 0:50:40]} 42. Rh8+ {[%emt 0:00:04]} Kg7 {[%emt 0:00:07]} 43. d7 {[%emt 0:00:03]} Kxh8 {[%emt 0:00:12]} 44. d8=Q+ {[%emt 0:00:06]} Kg7 {[%emt 0:00:49]} 45. Qc7+ {[%emt 0:00:07]} Kf6 {[%emt 0:00:36]} 46. Qxb7 {[%emt 0:00:04]} Re6 {[%emt 0:00:45]} 47. Kf2 {[%emt 0:00:06]} Kg5 {[%emt 0:00:25]} 48. Qd5+ {[%emt 0:00:16]} Kf6 {[%emt 0:00:03]} 49. Kf3 {[%emt 0:00:05]} Re7 {[%emt 0:00:15]} 50. Kf4 {[%emt 0:00:13]} Re6 {[%emt 0:00:17]} 51. Qd4+ {[%emt 0:00:06]} Kf7 {[%emt 0:00:04]} 1-0

[Event "82nd Italian Championship 2023"]
[Site "Brescia"]
[Date "2023.12.09"]
[Round "11.6"]
[White "Moroni, Luca Jr"]
[Black "Carnicelli, Valerio"]
[Result "1-0"]
[ECO "A05"]
[WhiteElo "2575"]
[BlackElo "2423"]
[Annotator "RC"]
[PlyCount "97"]
[EventDate "2023.11.28"]
[EventType "tourn"]
[EventCountry "ITA"]
[SourceTitle "playchess.com"]
[Source "ChessBase"]
[SourceQuality "1"]
[TimeControl "40/6000+30:20/3000+30:900+30"]

1. Nf3 {[%emt 0:00:16]} Nf6 {[%emt 0:00:03]} 2. g3 {[%emt 0:00:18]} g6 {[%emt 0:00:04]} 3. b3 {[%emt 0:00:03]} Bg7 {[%emt 0:00:03]} 4. Bb2 {[%emt 0:00:05]} O-O {[%emt 0:00:04]} 5. Bg2 {[%emt 0:00:04]} a5 {[%emt 0:00:03]} 6. c4 {[%emt 0:02:34]} d6 {[%emt 0:00:05]} 7. d4 {[%emt 0:01:48]} a4 {[%emt 0:02:22]} 8. Nbd2 {[%emt 0:06:08]} c5 {[%emt 0:03:12]} 9. O-O {[%emt 0:09:51]} Nc6 {[%emt 0:03:40]} 10. d5 {[%emt 0:04:17]} Na5 {[%emt 0:02:38]} 11. e4 {[%emt 0:07:24]} e6 {[%emt 0:04:07]} 12. dxe6 {[%emt 0:05:14]} Bxe6 {[%emt 0:01:23]} 13. Re1 {[%emt 0:03:09]} Re8 {[%emt 0:00:56]} 14. Bc3 {[%emt 0:09:32]} h6 {[%emt 0:06:26]} 15. Qc1 {[%emt 0:11:07]} Nd7 {[%emt 0:12:30]} 16. Bxg7 {[%emt 0:03:04]} Kxg7 {[%emt 0:00:03]} 17. Qc3+ {[%emt 0:00:24]} f6 {[%emt 0:06:29]} 18. b4 {[%emt 0:02:42]} Nc6 {[%emt 0:02:11]} 19. b5 {[%emt 0:01:28]} Nce5 {[%emt 0:00:46]} 20. Nxe5 {[%emt 0:01:26]} dxe5 {[%emt 0:02:34]} 21. Nf1 {[%emt 0:06:21]} Qa5 {[%emt 0:03:48]} 22. Rac1 {[%emt 0:01:50]} Nb6 {[%emt 0:05:51]} 23. Qxa5 {[%emt 0:02:03]} Rxa5 {[%emt 0:00:03]} 24. Ne3 {[%emt 0:00:05]} Rd8 {[%emt 0:03:33]} 25. Nd5 {[%emt 0:04:42]} Nc8 {[%emt 0:03:01]} 26. f4 {[%emt 0:02:34]} a3 {[%emt 0:19:10]} 27. Nc7 {[%emt 0:07:22]} Bg4 {[%emt 0:08:38]} 28. h3 {[%emt 0:04:53]} Rd7 {[%emt 0:00:19]} 29. b6 {[%emt 0:02:50]} Nxb6 {[%emt 0:09:27]} 30. Nd5 {[%emt 0:00:07]} Be6 {[%emt 0:00:07]} 31. Nxb6 {[%emt 0:00:05]} Rd2 {[%emt 0:00:02]} 32. Ra1 {[%emt 0:01:43]} Rb2 {[%emt 0:01:14]} 33. Reb1 {[%emt 0:02:40]} Ra6 {[%emt 0:00:07]} 34. Nd5 {[%emt 0:00:07]} Ra4 {[%emt 0:00:08]} 35. Rxb2 {[%emt 0:01:20]} axb2 {[%emt 0:00:02]} 36. Rb1 {[%emt 0:00:05]} Rxa2 {[%emt 0:00:59]} 37. Kf2 {[%emt 0:00:05]} exf4 {[%emt 0:04:37]} 38. gxf4 {[%emt 0:00:21]} g5 {[%emt 0:00:15]} 39. f5 {[%emt 0:01:24]} Bf7 {[%emt 0:02:24]} 40. Bf1 {[%emt 0:02:03]} h5 {[%emt 0:01:05]} 41. Bd3 {[%emt 0:11:42]} h4 {[%emt 0:03:12]} 42. Ke3 {[%emt 0:12:59]} Bh5 {[%emt 0:06:26]} 43. Nc3 {[%emt 0:05:12]} Ra1 {[%emt 0:02:38]} 44. Rxb2 {[%emt 0:01:00]} Rh1 {[%emt 0:00:12]} 45. Rxb7+ {[%emt 0:00:36]} Kh6 {[%emt 0:00:59]} 46. Nd5 {[%emt 0:00:54]} Rxh3+ {[%emt 0:00:06]} 47. Kd2 {[%emt 0:00:03]} Rh2+ {[%emt 0:01:41]} 48. Kc3 {[%emt 0:00:37]} g4 {[%emt 0:04:05]} 49. Nxf6 {[%emt 0:02:33]} 1-0